Cogmind - Beta 15 @@@ ROGUE MODE // 2025.05.17 @ 15:38:47 Player: szymekc Result: Destroyed by G-50 Soldier with Heavy Laser Performance ------------- Evolutions (5) 2500 Regions Visited (16) 3200 Robots Destroyed (166) 830 Value Destroyed (4204) 4204 Prototype IDs (38) 760 Alien Tech Used (0) 0 Bonus (2309) 2309 TOTAL SCORE: 13803 Bonus ------- Follower Combat Kills 334 Registered with UFD 300 Met Optimus in HQ 500 Destroyed Z-Imprinter 1000 Triggered Deep Caves Wall 500 Friendly Fire -325 Cogmind --------- Core Integrity 0/1000 Matter 284/300 Energy 98/100 System Corruption 8% Temperature Cool (10) Movement Treading (160) Location -5/Extension Parts ------- > --- POWER (2) -------- (None) > --- PROPULSION (5) --- Improved Treads (fused) Gyrokinetic Inverter > --- UTILITY (8) ------ Large Storage Unit Advanced Signal Interpreter > --- WEAPON (2) ------- Heavy Pick > --- INVENTORY (15) --- Light Nuclear Core Light Fission Core Neutrino Core High-capacity Storage Unit Superbattery (1500) Surveybot 24 Chip Makeshift Cloaking Device Zionite Weapon Casing Disruptor Cannon Heavy Plasma Cannon Gauss Rifle Heavy Missile Launcher Remote Datajack CPS Tube (2) PL-3XN's Ring of Power Peak State ------------ > --- POWER ------------ Mini Fusion Reactor > --- PROPULSION ------- Zionite Glidesys I Zionite Glidesys I Zionite Glidesys I Zionite Glidesys I Zionite Glidesys I > --- UTILITY ---------- Medium Storage Unit Superbattery Advanced Visual Processing Unit Advanced Signal Interpreter Zionite Heavy Carapace Experimental System Shield > --- WEAPON ----------- Heavy Plasma Cannon DM-GVY's Chainsaw > --- INVENTORY -------- Zionite Light DM Reactor Potential Leg Advanced Sensor Array Surveybot 24 Chip Makeshift Cloaking Device Zionite Weapon Casing Centrium Light Armor Plating Heavy Missile Launcher CPS Tube PL-3XN's Ring of Power [Rating: 97] Favorites ----------- Power Heavy Deuterium Engine Engine Heavy Deuterium Engine Power Core Light Fission Core Reactor Mini Fusion Reactor Propulsion Light Treads Treads Light Treads Leg Potential Leg Wheel Compact Wheel Hover Unit Zionite Glidesys I Flight Unit Improved Flight Unit Utility Huge Storage Unit Device Cooling System Storage Huge Storage Unit Processor Advanced Targeting Computer Hackware Experimental System Shield Protection Centrium Light Armor Plating Weapon EM Pulse Cannon Energy Gun EM Pulse Gun Energy Cannon EM Pulse Cannon Ballistic Gun Enhanced Autogun Ballistic Cannon Heavy Flak Cannon Launcher Heavy Missile Launcher Special Weapon Plasma Cutter Impact Weapon Great Maul Slashing Weapon DM-GVY's Chainsaw Piercing Weapon Lance Build | -11 -10 -10 -9 -9 -8 -8 -8 -8 -6 -6 -6 -6 -6 -5 -5 -5 ------- Run | Yrd Mat Min Mat Min Mat Sto Rec Scr Fac Low Low Zio Dee Pro Fac Ext Slots Evolved 10 | . . . 2 . 2 . . . 4 . . . . . 2 . Power 1 | . . . . . . . . . . . . . . . 1 . Propulsion 3 | . . . 1 . 1 . . . 1 . . . . . . . Utility 6 | . . . 1 . 1 . . . 3 . . . . . 1 . Weapon . | . . . . . . . . . . . . . . . . . Parts Attached 160 | 7 6 2 33 4 6 14 4 8 26 3 . 3 17 1 23 3 Power 23 | 1 2 . 5 . 1 1 . 1 5 . . . 1 . 6 . Engine 10 | 1 2 . 5 . 1 1 . . . . . . . . . . Core 9 | . . . . . . . . 1 4 . . . . . 4 . Reactor 4 | . . . . . . . . . 1 . . . 1 . 2 . Propulsion 51 | 2 . . 10 2 2 5 3 . 8 . . . 9 1 8 1 Treads 22 | 2 . . 8 2 2 5 1 . . . . . . . 1 1 Leg 3 | . . . . . . . . . 1 . . . . 1 1 . Wheel 3 | . . . 1 . . . 2 . . . . . . . . . Hover 15 | . . . . . . . . . . . . . 9 . 6 . Flight 8 | . . . 1 . . . . . 7 . . . . . . . Utility 49 | 2 1 1 7 . 2 5 . 5 11 1 . 2 6 . 6 . Device 17 | 2 . 1 2 . . 3 . 4 1 1 . . 1 . 2 . Storage 7 | . 1 . 2 . . . . . 1 . . . 2 . 1 . Processor 9 | . . . . . 1 . . 1 5 . . 1 . . 1 . Hackware 5 | . . . . . . . . . 4 . . 1 . . . . Protection 11 | . . . 3 . 1 2 . . . . . . 3 . 2 . Artifact . | . . . . . . . . . . . . . . . . . Weapon 37 | 2 3 1 11 2 1 3 1 2 2 2 . 1 1 . 3 2 Energy Gun 6 | 1 2 1 . . . 1 . . . . . . 1 . . . Energy Cannon 10 | . . . 6 1 1 . . . 1 . . . . . . 1 Ballistic Gun 7 | 1 . . 3 . . 2 . . . . . . . . 1 . Ballistic Cannon 1 | . . . . . . . . . . 1 . . . . . . Launcher 6 | . 1 . 1 1 . . . 1 1 . . 1 . . . . Special Weapon 3 | . . . . . . . 1 . . 1 . . . . 1 . Impact Weapon 1 | . . . 1 . . . . . . . . . . . . . Slashing Weapon 1 | . . . . . . . . 1 . . . . . . . . Piercing Weapon 2 | . . . . . . . . . . . . . . . 1 1 Special Melee Weapon . | . . . . . . . . . . . . . . . . . Unidentified Prototypes 22 | . . 1 2 . 1 3 . . 1 . . 3 9 . 2 . Corrupted Parts 2 | . . . . . . 1 . 1 . . . . . . . . System Corruption 2 | . . . . . . 1 . 1 . . . . . . . . Parts Lost 40 | . . . 5 1 . . . 2 1 . . . 6 6 19 . Power 4 | . . . . . . . . 1 . . . . . . 3 . Propulsion 21 | . . . 1 1 . . . 1 1 . . . 5 5 7 . Utility 12 | . . . 2 . . . . . . . . . 1 1 8 . Weapon 3 | . . . 2 . . . . . . . . . . . 1 . Highest Loss Streak 9 | . . . 1 1 . . . 2 1 . . . 3 4 9 . To Critical Strikes . | . . . . . . . . . . . . . . . . . Average Backups 18 | 2 10 14 19 24 24 24 24 24 6 8 9 9 8 8 11 13 Power 1 | . 2 2 1 1 1 . 1 1 . . . . . 1 1 2 Propulsion 3 | . 1 4 4 2 2 4 5 5 1 1 1 1 1 . . . Utility 5 | . . 1 3 7 9 8 8 9 2 4 5 5 4 4 4 5 Weapon 7 | 1 5 7 9 12 11 10 9 6 1 2 2 2 1 1 3 4 Tool/Special . | . . . . . . . . . . . . . . . . . Unused Backups 46 | . 1 1 15 . 1 8 . 6 3 . . 1 4 . . 6 Power 4 | . . . . . 1 . . . 1 . . . . . . 2 Propulsion 6 | . . . 6 . . . . . . . . . . . . . Utility 13 | . . . . . . 3 . 1 1 . . 1 4 . . 3 Weapon 21 | . 1 1 9 . . 5 . 5 . . . . . . . . Tool/Special 2 | . . . . . . . . . 1 . . . . . . 1 Average Slot Usage (%) 93 | . 99 100 93 100 95 99 100 99 94 93 93 93 92 65 65 26 Engine 6 | . 14 14 11 11 9 9 9 . . . . . . . . . Core 1 | . . . . . . . . 8 5 . . . . . 1 . Treads 20 | . 28 28 30 33 32 36 26 18 . . . . . . . 3 Wheel 3 | . . . 1 . . . 9 18 . . . . . . . . Hover 1 | . . . . . . . . . . . . . 21 6 6 5 Flight 4 | . . . . . . . . . 32 33 33 33 11 . . . Device 8 | . 14 14 11 11 8 9 9 4 5 6 6 6 6 6 3 . Storage 9 | . 13 14 11 11 9 9 9 9 3 6 6 6 6 6 5 5 Processor 8 | . . . . . 7 9 9 13 22 26 26 22 13 13 9 5 Hackware 1 | . . . . . . . . . 6 . . 3 6 6 4 . Protection 6 | . . . 5 11 10 9 9 9 5 5 6 6 8 5 7 . Energy Gun 3 | . 26 28 1 . . . . . . . . . . . . . Energy Cannon 6 | . . . 14 21 18 13 . . 2 . . . 3 1 2 . Ballistic Gun 3 | . . . 5 . . . 16 9 . . . . . . . . Impact Weapon 1 | . . . . . . 3 . 7 . . . . . . . . Slashing Weapon 1 | . . . . . . . . . 5 6 6 6 6 6 3 . Peak Build Rating 97 | 8 9 15 29 29 37 44 43 53 78 84 79 87 97 93 92 32 Average Rating 40 | 4 8 9 18 28 35 35 42 43 67 78 78 80 87 66 74 24 On Entrance 43 | . 8 9 9 29 28 37 43 41 45 70 79 79 82 93 63 25 Naked Turns . | . . . . . . . . . . . . . . . . . Heaviest Build 113 | 8 30 30 107 107 113 110 101 109 99 26 26 26 41 41 54 23 Greatest Support 87 | 40 40 40 66 67 87 87 82 32 28 28 28 28 70 70 53 23 Greatest Overweight (x) 6 | . . . 2 1 1 1 6 6 3 . . . 1 1 2 2 Average Overweight (x) . | . . . . 1 1 1 2 3 . . . . . . . . Largest Inventory Capacity 25 | 5 15 15 25 25 25 25 25 25 25 10 10 10 10 10 15 15 Average Capacity 19 | 5 14 15 20 25 25 25 25 25 8 10 10 10 10 10 14 15 Most Carried 25 | 4 15 15 25 25 25 25 24 25 25 10 10 10 10 10 15 15 Average Carried 18 | 2 10 14 19 24 24 24 24 24 7 9 10 10 9 9 12 14 Final Capacity 25 | 5 15 15 25 25 25 25 25 25 10 10 10 10 10 10 15 15 Final Carried 25 | 4 15 15 25 24 25 24 24 25 10 10 10 10 10 9 15 15 Class Distribution -------------------- 41% | Mutant 26% | Commander-Mutant 11% | Scout 9% | Scavenger-Mutant 5% | Assassin 3% | Scavenger-Scout Dominant Class ---------------- Mutant | -10/Materials Mutant | -10/Mines Mutant | -9/Materials Mutant | -9/Mines Mutant | -8/Materials Commander-Mutant | -8/Storage Commander-Mutant | -8/Recycling Commander-Mutant | -8/Scraptown Scout | -6/Factory Scout | -6/Lower Caves Scout | -6/Lower Caves Scout | -6/Zion Scavenger-Scout | -6/Deep Caves Assassin | -5/Proximity Caves Assassin | -5/Factory Mutant | -5/Extension Resources | -11 -10 -10 -9 -9 -8 -8 -8 -8 -6 -6 -6 -6 -6 -5 -5 -5 ----------- Run | Yrd Mat Min Mat Min Mat Sto Rec Scr Fac Low Low Zio Dee Pro Fac Ext Matter Collected 3306 | 293 96 84 568 171 120 424 281 221 353 80 10 30 282 . 235 58 Remotely . | . . . . . . . . . . . . . . . . . Salvage Created 7500 | 82 520 . 1611 230 379 1097 840 70 1003 196 16 . 242 52 1082 80 Parts 394 | 9 38 . 83 12 24 56 34 5 42 10 4 . 14 4 55 4 Haulers Intercepted 17 | . 2 . 5 . 1 6 . . 2 . . . . . 1 . Recyclers Shooed 7 | . . . 3 . . 1 . . 1 . . . . . 2 . Parts Field Recycled . | . . . . . . . . . . . . . . . . . Retrieved Matter . | . . . . . . . . . . . . . . . . . Parts Self-Destructed 11 | . . . . . . . . . . 7 . . . 4 . . Prevented . | . . . . . . . . . . . . . . . . . Kills | -11 -10 -10 -9 -9 -8 -8 -8 -8 -6 -6 -6 -6 -6 -5 -5 -5 ------- Run | Yrd Mat Min Mat Min Mat Sto Rec Scr Fac Low Low Zio Dee Pro Fac Ext Combat Hostiles Destroyed 110 | . 14 . 25 17 8 14 8 1 3 1 1 . 4 1 12 1 Melee 22 | . . . . . . . . 1 3 1 1 . 2 1 12 1 Guns 23 | . 8 . 7 . . . 8 . . . . . . . . . Cannons 33 | . . . 14 8 3 7 . . . . . . 1 . . . AOE 27 | . 6 . 3 9 4 4 . . . . . . 1 . . . Classes Destroyed 23 | 1 4 . 4 2 . 2 3 1 1 3 1 . 1 . . . Worker 8 | . . . 2 . 1 2 . . 1 . . . . . 2 . Builder 3 | . . . . . . 2 . . 1 . . . . . . . Tunneler 5 | 4 . . 1 . . . . . . . . . . . . . Hauler 17 | . 2 . 5 . 1 6 . . 2 . . . . . 1 . Recycler 15 | . 1 . 3 . . . 5 . 3 . . . . . 3 . Minesweeper 1 | . . . . . . . . . . 1 . . . . . . Mechanic 1 | . . . . . . . . . 1 . . . . . . . Operator 6 | . . . 2 . . 1 . . 3 . . . . . . . Watcher 9 | . . . 3 . . . . . 6 . . . . . . . Swarmer 30 | . 9 . 7 3 3 3 1 . . . . . . . 4 . Grunt 28 | . 5 . 9 1 . 10 . . 1 . . . . . 2 . Brawler 2 | . . . . . . 1 1 . . . . . . . . . Duelist 3 | . . . . . . . 2 . . . . . . 1 . . Protector 1 | . . . . . . . 1 . . . . . . . . . Sentry 23 | . . . 9 . 5 3 3 . 1 . . . . . 1 1 Demolisher 1 | . . . . 1 . . . . . . . . . . . . Hunter 3 | . . . . . . . . . . 1 . . . . 2 . Programmer 5 | . . . . . . . 1 . 1 . . . . . 3 . Scrapper 1 | . . . . . . . . 1 . . . . . . . . Z-Technician 4 | . . . . . . . . . . . . . 4 . . . Z-Light 3 | . . . . . . . . . . . . . 3 . . . Samaritan 1 | . . . . . . . . . . 1 . . . . . . Thief 1 | . . . . . . . . . . . 1 . . . . . Assembled 13 | . . . . 12 . . . . . . . . 1 . . . Best Kill Streak 9 | 4 5 . 5 8 4 9 4 1 2 1 1 . 4 1 6 1 Combat Bots Only 8 | . 5 . 3 8 4 6 3 1 1 1 1 . 1 1 6 1 Max Kills in Single Turn 3 | 1 2 . 3 3 3 3 1 1 1 1 1 . 1 1 1 1 Gunslinging 1 | . 1 . . . . . . . . . . . . . . . Exploded 3 | . 2 . 2 3 3 2 . . . . . . 1 . . . Melee 1 | . . . . . . . . 1 1 1 1 . 1 1 1 1 Uniques/NPCs Destroyed 2 | . . . . . . 1 . . . . . . 1 . . . 01-MTF (-8/Storage) Z-Imprinter (-6/Deep Caves) Combat | -11 -10 -10 -9 -9 -8 -8 -8 -8 -6 -6 -6 -6 -6 -5 -5 -5 -------- Run | Yrd Mat Min Mat Min Mat Sto Rec Scr Fac Low Low Zio Dee Pro Fac Ext Hostile Shots Fired 747 | . 55 . 171 22 22 44 13 44 57 . 5 . 43 43 199 29 Missed 235 | . 16 . 55 2 7 16 1 13 21 . 2 . 17 20 58 7 Hits 512 | . 39 . 116 20 15 28 12 31 36 . 3 . 26 23 141 22 Melee 10 | . . . . 3 . . 2 . . . 1 . . 4 . . Projectile 502 | . 39 . 116 17 15 28 10 31 36 . 2 . 26 19 141 22 AOE 8 | . . . . 6 . . . . 2 . . . . . . . Critical Strikes 18 | . . . 5 . 1 3 . 1 . . . . 1 1 5 1 Damage Taken 9470 | . 417 . 1659 542 199 507 204 499 637 . 47 . 820 543 2926 470 Core 2246 | . 89 . 293 14 24 13 42 31 340 . 24 . 290 82 720 284 Absorbed by Shields 37 | . . . . . . . 15 . . . . . . . 22 . Redirected to Shielding 108 | . . . . . . . . . . . . . . . 108 . Regen/Repaired (Parts) 163 | . . . . . . . . . 163 . . . . . . . Core Remaining (%) 56 | 100 . 64 . 23 . . . 80 . . . . . 13 . . Volleys Fired 300 | 13 35 . 120 16 13 37 26 3 12 . . . 17 6 1 1 Largest 2 | 1 2 . 2 2 2 2 2 1 1 . . . 1 1 1 1 Hottest 126 | 20 80 . 126 126 126 126 50 80 90 . . . 90 90 5 81 Shots Fired 527 | 13 68 . 236 28 21 69 52 3 12 . . . 17 6 1 1 Gun 236 | 13 66 . 99 . . 6 52 . . . . . . . . . Cannon 272 | . . . 134 24 20 60 . 3 10 . . . 14 6 . 1 Launcher 18 | . 2 . 3 4 1 3 . . 2 . . . 3 . . . Special 1 | . . . . . . . . . . . . . . . 1 . Kinetic 135 | 13 . . 64 . . 6 52 . . . . . . . . . Thermal 169 | . . . 132 . 4 . . 3 10 . . . 14 6 . . Explosive 18 | . 2 . 3 4 1 3 . . 2 . . . 3 . . . Electromagnetic 204 | . 66 . 37 24 16 60 . . . . . . . . . 1 Robot Hit Streak 24 | 8 7 . 15 6 18 24 12 . . . . . 3 . 1 2 Robot Miss Streak 4 | 1 3 . 4 2 . 3 3 . . . . . 1 . . . Penetration Max . | . . . . . . . . . . . . . . . . . Secondary Targets 2 | . 2 . . . . . . . . . . . . . . . Max Gunslinging Chain 1 | . 1 . . . . . . . . . . . . . . . Shots Hit Robots 456 | 12 41 . 155 14 15 56 34 5 38 4 2 . 16 4 48 12 Core Hits 218 | 6 22 1 56 22 7 32 18 1 13 2 1 . 11 2 21 3 Critical Kills . | . . . . . . . . . . . . . . . . . Critical Parts Destroyed 2 | . . . . . . 2 . . . . . . . . . . Critical Strikes 30 | . 1 . 1 . . 3 . 1 7 . . . 2 2 12 1 Corrupt 3 | . 1 . 1 . . 1 . . . . . . . . . . Smash 2 | . . . . . . 2 . . . . . . . . . . Sever 23 | . . . . . . . . 1 7 . . . 2 2 11 . Impale 2 | . . . . . . . . . . . . . . . 1 1 Melee Attacks 234 | . . . 2 . . 13 . 11 74 7 5 . 23 5 77 17 Impact 16 | . . . 2 . . 13 . 1 . . . . . . . . Slashing 173 | . . . . . . . . 10 74 7 5 . 23 5 49 . Piercing 45 | . . . . . . . . . . . . . . . 28 17 Sneak Attacks 36 | . . . 1 . . 5 . . 12 2 . . 8 . 7 1 Combat Hostiles 5 | . . . . . . . . . 2 . . . 3 . . . Follow-up Attacks 2 | . . . . . . . . . . . . . . . 2 . Damage Inflicted 16294 | 101 879 18 3038 875 632 2268 706 232 2762 358 101 . 1560 146 2245 373 Guns 2433 | 101 524 . 1028 . . 95 685 . . . . . . . . . Cannons 3671 | . . . 1674 304 370 1175 . . . . . . 128 . . 20 Explosions 2239 | . 333 . 187 555 231 525 . . 101 . . . 307 . . . Melee 7726 | . . . 61 . . 444 . 232 2661 358 101 . 1125 146 2245 353 Ramming 225 | . 22 18 88 16 31 29 21 . . . . . . . . . Kinetic 1567 | 101 . . 686 . . 95 685 . . . . . . . . . Thermal 2066 | . 205 . 1640 . 49 44 . . . . . . 128 . . . Explosive 1941 | . 128 . 187 555 182 481 . . 101 . . . 307 . . . Electromagnetic 2769 | . 524 . 376 304 370 1175 . . . . . . . . . 20 Impact 505 | . . . 61 . . 444 . . . . . . . . . . Slashing 6144 | . . . . . . . . 232 2661 358 101 . 1125 146 1521 . Piercing 1077 | . . . . . . . . . . . . . . . 724 353 Highest Corruption 8 | . 2 2 1 1 . 6 6 1 . . . . . . 8 8 Average Corruption 3 | . 2 2 1 1 . 4 6 1 . . . . . . 4 8 Corruption Purged . | . . . . . . . . . . . . . . . . . Corruption Blocked . | . . . . . . . . . . . . . . . . . Effects 118 | . 14 16 9 6 . 21 31 . . . . . . . 14 7 Message Errors 25 | . 3 3 2 1 . 2 8 . . . . . . . 4 2 Matter Fused 37 | . 6 5 3 1 . 7 9 . . . . . . . 4 2 Heat Flow Errors 10 | . . 2 . . . 1 4 . . . . . . . 2 1 Energy Discharges 14 | . 2 2 . 1 . 2 3 . . . . . . . 3 1 Parts Rejected 2 | . . . . 1 . . 1 . . . . . . . . . Parts Fused 4 | . . 2 . . . . 1 . . . . . . . . 1 Data Loss (minor) 15 | . 2 1 1 . . 5 5 . . . . . . . 1 . Data Loss (major) 6 | . . . 2 1 . 3 . . . . . . . . . . Misfires 2 | . . . 1 . . 1 . . . . . . . . . . Alerts 3 | . 1 1 . 1 . . . . . . . . . . . . Overload Shots . | . . . . . . . . . . . . . . . . . Overflow Damage 1938 | . 27 . 61 65 1 307 . . 691 182 . . 345 . 214 45 Projectiles 22 | . . . 20 2 . . . . . . . . . . . . Explosions 131 | . 27 . . 63 . 41 . . . . . . . . . . Melee 1785 | . . . 41 . 1 266 . . 691 182 . . 345 . 214 45 Knockbacks 5 | . . 1 . 1 . 3 . . . . . . . . . . Impact 5 | . . 1 . 1 . 3 . . . . . . . . . . Kinetic . | . . . . . . . . . . . . . . . . . Secondary . | . . . . . . . . . . . . . . . . . Self-Inflicted Damage 155 | . 34 . . . . 62 10 . . . . . 49 . . . Shots 3 | . 1 . . . . 1 . . . . . . 1 . . . Rammed 25 | . 7 4 7 1 2 3 1 . . . . . . . . . Targets Rammed 26 | . 8 4 7 1 2 3 1 . . . . . . . . . Kicked . | . . . . . . . . . . . . . . . . . Crushed 1 | . 1 . . . . . . . . . . . . . . . Highest Temperature 229 | . 147 110 156 27 18 138 197 76 184 . . . 176 168 220 229 Average Temperature 46 | . 52 60 29 9 8 29 44 30 72 . . . 65 73 75 94 Received Heat Transfer 2265 | . 120 . 648 6 36 216 41 259 78 . 9 . 185 117 379 171 Siege Activations . | . . . . . . . . . . . . . . . . . Martial Activations . | . . . . . . . . . . . . . . . . . Shielding Activations . | . . . . . . . . . . . . . . . . . Robots Disrupted . | . . . . . . . . . . . . . . . . . Combat Hostiles . | . . . . . . . . . . . . . . . . . Robots Corrupted 9 | . . . 1 . 3 5 . . . . . . . . . . Combat Hostiles 4 | . . . . . 1 3 . . . . . . . . . . Parts Fried 24 | . 2 . 4 . 7 11 . . . . . . . . . . Impact Corruptions 11 | . . . 1 . 1 9 . . . . . . . . . . Robots Melted 1 | . . . 1 . . . . . . . . . . . . . Combat Hostiles 1 | . . . 1 . . . . . . . . . . . . . Parts Melted 12 | . . . 8 . . . . 1 . . . . 3 . . . Heat Transferred 3904 | . 150 . 3404 . 50 100 . . . . . . 200 . . . Parts Sabotaged . | . . . . . . . . . . . . . . . . . Parts Stolen 1 | . . . . . . . . . . . 1 . . . . . Parts Stripped . | . . . . . . . . . . . . . . . . . Power Chain Reactions 6 | . 4 . . . 1 1 . . . . . . . . . . Alert | -11 -10 -10 -9 -9 -8 -8 -8 -8 -6 -6 -6 -6 -6 -5 -5 -5 ------- Run | Yrd Mat Min Mat Min Mat Sto Rec Scr Fac Low Low Zio Dee Pro Fac Ext Maximum Alert Level 1 | . . . 1 . . 1 . . . . . . . . 1 . Low Security (%) 94 | 100 100 100 78 100 100 95 100 . 100 . . . . . 93 100 Level 1 5 | . . . 21 . . 4 . . . . . . . . 6 . Level 2 . | . . . . . . . . . . . . . . . . . Level 3 . | . . . . . . . . . . . . . . . . . Level 4 . | . . . . . . . . . . . . . . . . . Level 5 . | . . . . . . . . . . . . . . . . . High Security . | . . . . . . . . . . . . . . . . . Max Security . | . . . . . . . . . . . . . . . . . Peak Influence 312 | 10 194 27 312 122 115 220 114 . 195 . . . . . 309 136 Initial 128 | . . 27 . 106 . 16 . . . . . . . . 53 128 Average 63 | 1 110 . 120 24 34 70 38 . 41 . . . . . 46 97 Influence Increases 4818 | 20 482 . 1039 154 245 702 453 . 611 40 135 . . 255 614 68 Destroy 0b10 Robot/C 1900 | . 280 . 500 100 160 280 180 . 100 20 . . . 20 240 20 Destroy 0b10 Robot/NC 355 | 20 15 . 80 . 10 65 40 . 85 10 . . . . 30 . Destroy Leader 484 | . 54 . 166 10 62 64 . . 56 10 . . . 10 42 10 Allied During Kill 104 | . . . . . . 74 30 . . . . . . . . . Successful Hack 317 | . 37 . 63 . . 69 22 . 110 . . . . . 12 4 Select Force Hacks 210 | . 30 . . . . . 180 . . . . . . . . . Disable Machine 135 | . . . 30 . . 90 . . . . . . . . 15 . Destroy Structure 248 | . 36 . 50 29 13 45 1 . 50 . . . . . 20 4 Partial Spotted 120 | . . . 15 . . 15 . . 90 . . . . . . . Lose Combat Pursuer 945 | . 30 . 135 15 . . . . 120 . 135 . . 225 255 30 Influence Decreases 4752 | 20 411 71 765 428 206 741 423 30 416 193 102 75 . 170 436 265 Entered New Map 589 | . . 44 . 168 . 23 . 30 . 73 9 75 . . 32 135 Time Decay 3501 | 20 411 27 585 250 206 532 383 . 344 120 93 . . 140 260 130 Lost Part 224 | . . . 30 10 . . . . 10 . . . . 30 144 . Lost Ally 110 | . . . . . . 50 40 . 20 . . . . . . . Purge Threat 328 | . . . 150 . . 136 . . 42 . . . . . . . Squads Dispatched 20 | . 3 . 1 . 1 1 . . 8 . . . . . 5 1 Investigation 6 | . 2 . 1 . . 1 . . 2 . . . . . . . Extermination 5 | . . . . . . . . . 3 . . . . . 2 . Reinforcement 9 | . 1 . . . 1 . . . 3 . . . . . 3 1 Assault . | . . . . . . . . . . . . . . . . . Garrison . | . . . . . . . . . . . . . . . . . Intercept . | . . . . . . . . . . . . . . . . . Searches Triggered . | . . . . . . . . . . . . . . . . . Construction Impeded 1 | . . . . . . . . . . . . . . . 1 . Haulers Reinforced 1 | . . . . . . . . . 1 . . . . . . . Active Scanning Responses . | . . . . . . . . . . . . . . . . . Cargo Convoy Interrupts 1 | . . . . . . . . . 1 . . . . . . . Stealth | -11 -10 -10 -9 -9 -8 -8 -8 -8 -6 -6 -6 -6 -6 -5 -5 -5 --------- Run | Yrd Mat Min Mat Min Mat Sto Rec Scr Fac Low Low Zio Dee Pro Fac Ext Distress Signals 9 | . . . 1 . 1 1 . 2 1 . . . . . 1 2 Communications Jammed . | . . . . . . . . . . . . . . . . . Distress Signals . | . . . . . . . . . . . . . . . . . Times Spotted 289 | . 23 . 45 21 9 31 7 14 29 1 3 . 51 13 36 6 Peak Tracking Total 38 | . 5 . 5 9 4 5 2 8 8 1 9 . 38 6 14 3 Tactical Retreats 34 | . 2 . 6 1 . 1 . . 7 . 3 . 2 6 5 1 Traps | -11 -10 -10 -9 -9 -8 -8 -8 -8 -6 -6 -6 -6 -6 -5 -5 -5 ------- Run | Yrd Mat Min Mat Min Mat Sto Rec Scr Fac Low Low Zio Dee Pro Fac Ext Traps Triggered 7 | . 1 . . . 1 1 . . . . . . . . 4 . Indirectly . | . . . . . . . . . . . . . . . . . Trap Hack Attempts . | . . . . . . . . . . . . . . . . . Triggered . | . . . . . . . . . . . . . . . . . Disarmed . | . . . . . . . . . . . . . . . . . Reprogrammed . | . . . . . . . . . . . . . . . . . Reused 2 | . . . . . . . . . . . . . 2 . . . Traps Extracted . | . . . . . . . . . . . . . . . . . Installed 2 | . . . . . . . . . . . . . 2 . . . Triggered . | . . . . . . . . . . . . . . . . . Most Traps Carried 2 | . . . . . . . . . . 2 2 2 2 . . . Machines | -11 -10 -10 -9 -9 -8 -8 -8 -8 -6 -6 -6 -6 -6 -5 -5 -5 ---------- Run | Yrd Mat Min Mat Min Mat Sto Rec Scr Fac Low Low Zio Dee Pro Fac Ext Machines Disabled 16 | . . . 2 . . 6 . 5 . 1 . . 1 . 1 . Max in Single Turn 2 | . . . 2 . . 1 . 1 . 1 . . . . 1 . Garrison Access 4 | . . . . . . 1 . . 2 . . . . . 1 . Machines Repaired . | . . . . . . . . . . . . . . . . . Machines Dismantled . | . . . . . . . . . . . . . . . . . Machines Sabotaged . | . . . . . . . . . . . . . . . . . Overloaded Fab Kills . | . . . . . . . . . . . . . . . . . Hacking | -11 -10 -10 -9 -9 -8 -8 -8 -8 -6 -6 -6 -6 -6 -5 -5 -5 --------- Run | Yrd Mat Min Mat Min Mat Sto Rec Scr Fac Low Low Zio Dee Pro Fac Ext Machines Accessed 77 | . 7 1 13 1 2 10 11 2 20 1 . . . . 6 3 Terminals 47 | . 6 . 11 . 2 8 5 . 9 . . . . . 3 3 Fabricators 2 | . . . . . . . . . 2 . . . . . . . Repair Stations 2 | . . . . . . . . . 1 . . . . . 1 . Recycling Units 15 | . 1 . 2 . . 1 6 . 4 . . . . . 1 . Scanalyzers 1 | . . . . . . . . . 1 . . . . . . . Garrison Access 5 | . . . . . . 1 . . 3 . . . . . 1 . Total Hacks 236 | . 26 1 42 1 9 35 37 10 49 1 . . . . 13 12 Successful 129 | . 17 1 21 1 2 17 21 10 33 1 . . . . 3 2 Failed 105 | . 8 . 21 . 7 17 16 . 16 . . . . . 10 10 Catastrophic 15 | . . . 4 . . 1 2 . 4 . . . . . 3 1 Database Lockouts 2 | . 1 . . . . 1 . . . . . . . . . . Manual 141 | . 21 . 30 . 9 17 27 . 21 . . 4 . . 2 10 Terminals 168 | . 24 . 36 . 9 31 23 . 27 . . . . . 6 12 Fabricators 4 | . . . . . . . . . 4 . . . . . . . Repair Stations 3 | . . . . . . . . . 2 . . . . . 1 . Recycling Units 36 | . 2 . 6 . . 2 14 . 10 . . . . . 2 . Scanalyzers 2 | . . . . . . . . . 2 . . . . . . . Garrison Access 10 | . . . . . . 2 . . 4 . . . . . 4 . Terminal Hacks 53 | . 9 1 9 1 . 9 3 10 9 1 . . . . 1 . Record 4 | . . . . . . . . 4 . . . . . . . . Robot Analysis 12 | . 3 . 2 . . 1 . 6 . . . . . . . . Prototype ID Bank 10 | . 3 . 3 . . 3 1 . . . . . . . . . Open Door 5 | . . 1 . 1 . 1 . . . 1 . . . . 1 . Branch Access Points 4 | . 1 . 1 . . . . . 2 . . . . . . . Terminal Index 3 | . 1 . . . . 1 1 . . . . . . . . . Unreport Threat 5 | . . . 1 . . 2 . . 2 . . . . . . . Hauler Manifests 2 | . . . 1 . . . . . 1 . . . . . . . Registered Components 1 | . . . . . . . . . 1 . . . . . . . Zone Layout 7 | . 1 . 1 . . 1 1 . 3 . . . . . . . Fabricator Hacks 3 | . . . . . . . . . 3 . . . . . . . Network Status 1 | . . . . . . . . . 1 . . . . . . . Build 2 | . . . . . . . . . 2 . . . . . . . Repair Station Hacks 2 | . . . . . . . . . 2 . . . . . . . Scan Component 1 | . . . . . . . . . 1 . . . . . . . Repair 1 | . . . . . . . . . 1 . . . . . . . Recycling Unit Hacks 9 | . . . 2 . . . 4 . 3 . . . . . . . Retrieve Components 9 | . . . 2 . . . 4 . 3 . . . . . . . Scanalyzer 2 | . . . . . . . . . 2 . . . . . . . Insert Component 1 | . . . . . . . . . 1 . . . . . . . Analyze 1 | . . . . . . . . . 1 . . . . . . . Garrison Access Hacks 4 | . . . . . . 1 . . 2 . . . . . 1 . Seal Access 4 | . . . . . . 1 . . 2 . . . . . 1 . Unauthorized Hacks 56 | . 8 . 10 . 2 7 14 . 12 . . . . . 1 2 Terminals 40 | . 7 . 7 . 2 7 8 . 7 . . . . . . 2 Botnet 12 | . 2 . 2 . . 2 3 . 2 . . . . . . 1 Skim 28 | . 5 . 5 . 2 5 5 . 5 . . . . . . 1 Fabricators 1 | . . . . . . . . . 1 . . . . . . . Haulers 1 | . . . . . . . . . 1 . . . . . . . Repair Stations . | . . . . . . . . . . . . . . . . . Recycling Units 15 | . 1 . 3 . . . 6 . 4 . . . . . 1 . Reject 3 | . . . 1 . . . . . 1 . . . . . 1 . Mask 3 | . . . 2 . . . . . 1 . . . . . . . Tunnel 7 | . 1 . . . . . 6 . . . . . . . . . Fedlink 2 | . . . . . . . . . 2 . . . . . . . Scanalyzers . | . . . . . . . . . . . . . . . . . Garrison Access . | . . . . . . . . . . . . . . . . . Data Cores Recovered 3 | . . . 2 . . . . . 1 . . . . . . . Used . | . . . . . . . . . . . . . . . . . Hacking Detections 58 | . 6 . 12 . 2 8 6 . 16 . . . . . 5 3 Full Trace Events 3 | . . . 3 . . . . . . . . . . . . . Feedback Events 1 | . . . 1 . . . . . . . . . . . . . Corruption 1 | . . . 1 . . . . . . . . . . . . . Feedback Blocked . | . . . . . . . . . . . . . . . . . Robot Schematics Acquired . | . . . . . . . . . . . . . . . . . Robots Built 3 | . . . . . . . . . 3 . . . . . . . Authchips . | . . . . . . . . . . . . . . . . . Time 58 | . . . . . . . . . 58 . . . . . . . Total Robot Build Rating 9 | . . . . . . . . . 9 . . . . . . . Part Schematics Acquired 1 | . . . . . . . . . 1 . . . . . . . Parts Built 1 | . . . . . . . . . 1 . . . . . . . Authchips . | . . . . . . . . . . . . . . . . . Time 187 | . . . . . . . . . 187 . . . . . . . Total Part Build Rating 7 | . . . . . . . . . 7 . . . . . . . Parts Repaired 1 | . . . . . . . . . 1 . . . . . . . Time 108 | . . . . . . . . . 108 . . . . . . . Parts Recycled . | . . . . . . . . . . . . . . . . . Recycled Matter . | . . . . . . . . . . . . . . . . . Retrieved Matter . | . . . . . . . . . . . . . . . . . Retrieved Components 47 | . . . 19 . . . 22 . 6 . . . . . . . Parts Scanalyzed 1 | . . . . . . . . . 1 . . . . . . . Part Schematics Acquired 1 | . . . . . . . . . 1 . . . . . . . Parts Damaged . | . . . . . . . . . . . . . . . . . Bothacking | -11 -10 -10 -9 -9 -8 -8 -8 -8 -6 -6 -6 -6 -6 -5 -5 -5 ------------ Run | Yrd Mat Min Mat Min Mat Sto Rec Scr Fac Low Low Zio Dee Pro Fac Ext Used RIF Installer . | . . . . . . . . . . . . . . . . . Robots Hacked 1 | . . . . . . . . . . . . . . . 1 . Non-combat . | . . . . . . . . . . . . . . . . . Combat 1 | . . . . . . . . . . . . . . . 1 . Robot Hacks Applied 1 | . . . . . . . . . . . . . . . 1 . parse_system 1 | . . . . . . . . . . . . . . . 1 . Relay Couplers Released . | . . . . . . . . . . . . . . . . . Fabnet Peak Effective % . | . . . . . . . . . . . . . . . . . Robots Rewired 10 | . . . . . . . 9 . . . . . . . 1 . Allies Hacked . | . . . . . . . . . . . . . . . . . Hacks Repelled . | . . . . . . . . . . . . . . . . . Allies | -11 -10 -10 -9 -9 -8 -8 -8 -8 -6 -6 -6 -6 -6 -5 -5 -5 -------- Run | Yrd Mat Min Mat Min Mat Sto Rec Scr Fac Low Low Zio Dee Pro Fac Ext Total Allies 30 | . . . . . . 10 9 . 3 . . 7 . . 1 . Largest Group 10 | . . . . . . 10 8 8 3 . . 7 7 . 1 . Highest-Rated Group 191 | . . . . . . 173 156 156 48 . . 191 191 . 49 . Highest-Rated Ally 49 | . . . . . . 29 29 27 16 . . 31 31 . 49 . Total Orders 3 | . . 1 . . . . . 2 . . . . . . . . STAY 1 | . . . . . . . . 1 . . . . . . . . RETURN 2 | . . 1 . . . . . 1 . . . . . . . . Ally Attacks 124 | . . . . . . 28 12 15 19 . . . 47 . 3 . Total Damage 2056 | . . . . . . 285 175 199 302 . . . 986 . 109 . Kills 19 | . . . . . . 4 2 2 2 . . . 9 . . . Allies Corrupted 1 | . . . . . . . . . . . . . . . 1 . Allies Melted 1 | . . . . . . . . 1 . . . . . . . . Intel | -11 -10 -10 -9 -9 -8 -8 -8 -8 -6 -6 -6 -6 -6 -5 -5 -5 ------- Run | Yrd Mat Min Mat Min Mat Sto Rec Scr Fac Low Low Zio Dee Pro Fac Ext Active Infowar (turns) 7116 | 44 1030 998 303 . . . . 921 1204 244 261 260 796 356 699 . Optics 3810 | . . . . . . . . . 1194 244 261 260 796 356 699 . Sensors 3582 | . . . . . . . . . 1103 244 261 260 795 356 563 . IFF 1023 | . . . . . . . . 918 . . . . . . 105 . Terrain 292 | 44 16 . 230 . . . . 2 . . . . . . . . Seismic 2119 | 18 1030 998 73 . . . . . . . . . . . . . Cloaking 11 | . . . . . . . . 1 10 . . . . . . . Robot Analysis Total 12 | . 3 . 2 . . 1 . 6 . . . . . . . . Derelict Logs Recovered 11 | . . 1 . 2 . . . . . 2 1 2 . 3 . . Drone Launches 4 | . . 1 . . . . . 3 . . . . . . . . Drone Recoveries 4 | . . 1 . . . . . 3 . . . . . . . . Exploration | -11 -10 -10 -9 -9 -8 -8 -8 -8 -6 -6 -6 -6 -6 -5 -5 -5 ------------- Run | Yrd Mat Min Mat Min Mat Sto Rec Scr Fac Low Low Zio Dee Pro Fac Ext Turns Passed 16495 | 147 1030 1002 2657 1284 730 1642 1199 2472 1207 244 261 260 796 356 945 263 Spaces Moved 13451 | 70 458 616 1237 528 285 607 559 1333 3000 707 872 672 1206 388 780 133 Core 3 | 3 . . . . . . . . . . . . . . . . Treads 3903 | 67 458 616 1071 528 285 607 177 . . . . . . . . 94 Legs 868 | . . . . . . . . . . . . . . 267 601 . Wheels 1881 | . . . 166 . . . 382 1333 . . . . . . . . Hover 1172 | . . . . . . . . . . . . . 833 121 179 39 Flight 5624 | . . . . . . . . . 3000 707 872 672 373 . . . Fastest Speed 28 | 50 160 160 120 225 230 232 145 145 28 28 28 28 28 44 45 110 Average Speed 98 | 155 160 160 170 229 231 233 173 145 28 28 28 28 39 82 85 148 Slowest Speed 240 | 160 160 160 240 230 232 236 236 190 238 28 28 28 130 130 170 160 Overloaded Moves 148 | . . . . . . . . . . . . . . 16 132 . Propulsion Burnouts . | . . . . . . . . . . . . . . . . . Robots Hopped 15 | . . . . . . . . . 10 2 3 . . . . . Potential Cave-ins 2 | . . . . . . . . . . . . . 2 . . . Cave-ins Triggered . | . . . . . . . . . . . . . . . . . Exploration Rate (%) 72 | 5 79 99 97 98 35 95 97 90 78 84 91 83 85 63 22 25 Regions Visited 16 Branch Regions 11 Pre-discovered Areas 22 | . 1 1 3 . . 4 9 . 2 1 . 1 . . . . Known Exits Taken 15 | . 1 1 1 1 1 1 1 1 1 1 1 1 1 1 1 . Unknown Exits Taken 1 | 1 . . . . . . . . . . . . . . . . Scrap Searched 15 | . . 1 . 1 . . . 4 . 5 2 2 . . . . Spaces Dug 155 | . . . 18 35 13 7 . 1 27 2 2 . 32 6 10 2 Terrain Destroyed 297 | . 32 . 50 35 14 34 . 3 53 2 2 . 53 7 10 2 Melee 55 | . . . 1 . . 3 . . 27 2 2 . 7 1 10 2 Projectile 31 | . . . . . 4 . . 3 8 . . . 10 6 . . AOE 211 | . 32 . 49 35 10 31 . . 18 . . . 36 . . . Terrain Rammed . | . . . . . . . . . . . . . . . . . Walls Destroyed . | . . . . . . . . . . . . . . . . . Machines Disabled . | . . . . . . . . . . . . . . . . . Actions | -11 -10 -10 -9 -9 -8 -8 -8 -8 -6 -6 -6 -6 -6 -5 -5 -5 --------- Run | Yrd Mat Min Mat Min Mat Sto Rec Scr Fac Low Low Zio Dee Pro Fac Ext Total 15671 | 94 681 630 1558 571 331 732 751 1840 3185 735 874 743 1456 409 917 164 Wait 1071 | . 160 2 77 18 8 8 54 461 33 16 . 65 156 8 3 2 Move 13405 | 69 457 615 1236 527 284 606 558 1332 2979 702 865 671 1205 387 779 133 Hop 15 | . . . . . . . . . 10 2 3 . . . . . Pick Up 106 | 4 11 3 36 1 5 14 . 8 7 1 . 1 7 . 7 1 Fast Attach 73 | 6 . . 11 1 6 2 1 . 7 2 1 2 13 . 20 1 Attach 42 | . 1 . 4 2 . 1 . . 18 1 . . 3 2 7 3 Detach 34 | . . . 2 . . . . . 16 . . 1 2 1 10 2 Swap 124 | 2 7 3 23 4 7 28 5 17 11 2 . 1 12 . 2 . Drop 125 | . 2 3 40 1 6 20 . 7 18 2 . 2 16 . 7 1 Fire 300 | 13 35 . 120 16 13 37 26 3 12 . . . 17 6 1 1 Melee 232 | . . . 2 . . 13 . 11 74 7 5 . 23 5 75 17 Ram 1 | . . . . . . . 1 . . . . . . . . . Kick . | . . . . . . . . . . . . . . . . . Crush 25 | . 8 4 7 1 2 3 . . . . . . . . . . Escape Stasis 5 | . . . . . . . . . . . . . . . 5 . Rewire 110 | . . . . . . . 106 . . . . . . . 1 3 Trap 2 | . . . . . . . . . . . . . 2 . . . Miscellaneous 1 | . . . . . . . . 1 . . . . . . . . Route ------- -11/Scrapyard -10/Materials (discovered 6 exits: *Mat x3 / *Min x2 / Sub) -10/Mines (discovered 4 exits: *Mat x2 / [*Exi] / *Sub) -9/Materials (discovered 5 exits: *Mat x3 / *Min x2) -9/Mines -8/Materials (discovered 5 exits: *Fac x3 / *Sto x2) -8/Storage (discovered 2 exits: *Fac / *Rec) -8/Recycling (discovered 2 exits: *Fac / *Scr) -8/Scraptown (discovered 2 exits: *Fac x2) -6/Factory (discovered 6 exits: *Fac x4 / *Low x2) -6/Lower Caves -6/Lower Caves (discovered 2 exits: *Fac / *Zio) -6/Zion (discovered 2 exits: *Dee / [*Pro]) -6/Deep Caves -5/Proximity Caves -5/Factory (discovered 4 exits: *Fac / Upp / *Ext x2) -5/Extension (discovered 2 exits: Fac / Cet) History --------- Turn | Location | Event 6 | -11/Scrapyard | Discovered new exit (range 15) 148 | -11/Scrapyard | Entered Materials 256 | -10/Materials | Identified exit to Mines 304 | -10/Materials | Build established: Mutant 648 | -10/Materials | Derelicts attacked the area 677 | -10/Materials | Discovered new exit (range 9) 774 | -10/Materials | Discovered new exit (range 15) 890 | -10/Materials | Identified exit to Materials 948 | -10/Materials | Central database locked down 976 | -10/Materials | Learned 2 Storage zone layouts 1005 | -10/Materials | Learned location of 2 exits from Subcaves 1022 | -10/Materials | Learned location of 2 exits from Subcaves 1030 | -10/Materials | Loaded intel: 2 recycling unit locations 1046 | -10/Materials | Learned Storage security intel 1072 | -10/Materials | Learned 4 Recycling zone layouts 1109 | -10/Materials | Identified exit to Subcaves 1109 | -10/Materials | Learned location of 1 exit from Materials 1155 | -10/Materials | Learned location of 1 exit from Recycling 1178 | -10/Materials | Entered Mines 1277 | -10/Mines | Received a Rocket Launcher from a helpful Derelict 1376 | -10/Mines | Deemed a non-threat by the Exiles lab entrance 1377 | -10/Mines | Discovered new exit (range 5) 1538 | -10/Mines | Learned location of Storage (-8) 1545 | -10/Mines | Discovered exit to Subcaves (range 9) 1657 | -10/Mines | Found the Drone Emporium 1665 | -10/Mines | Found Prototype Device 1665 | -10/Mines | Identified Splice Drone Bay 1742 | -10/Mines | Learned location of 1 exit from Materials 1868 | -10/Mines | Discovered exit to Materials (range 8) 2180 | -10/Mines | Entered Materials 2180 | -9/Materials | Evolved 2 slots: Propulsion x1, Utility x1 2181 | -9/Materials | Identified exit to Materials 2745 | -9/Materials | Discovered exit to Materials (range 11) 2963 | -9/Materials | Build established: Scavenger-Mutant 2993 | -9/Materials | Discovered new exit (range 11) 3282 | -9/Materials | Core integrity fell below 50% 3379 | -9/Materials | Learned 4 Recycling zone layouts 3422 | -9/Materials | Learned location of 2 exits from Materials 3454 | -9/Materials | Identified exit to Mines 3490 | -9/Materials | Learned location of 1 exit from Storage 3493 | -9/Materials | Learned Storage stockpile data 3497 | -9/Materials | Learned location of 3 exits from Materials 3527 | -9/Materials | Learned location of Mines (-9) 3555 | -9/Materials | Learned Storage garrison access intel 4057 | -9/Materials | Build established: Mutant 4837 | -9/Materials | Entered Mines 5021 | -9/Mines | Met a Derelict who couldn't figure out how to use a Trap Extractor 5063 | -9/Mines | Learned location of 1 exit from Materials 5112 | -9/Mines | Assembled infested the area 5180 | -9/Mines | Destroyed 8 combat bots 5382 | -9/Mines | Discovered exit to Materials (range 7) 5725 | -9/Mines | Learned Materials garrison access intel 6121 | -9/Mines | Entered Materials 6121 | -8/Materials | Evolved 2 slots: Propulsion x1, Utility x1 6122 | -8/Materials | Identified exit to Storage 6122 | -8/Materials | Identified exit to Factory 6123 | -8/Materials | Loaded intel: 1 garrison access location 6851 | -8/Materials | Entered Storage 6852 | -8/Storage | Identified exit to Recycling 6856 | -8/Storage | Loaded intel: 1 garrison access location 7215 | -8/Storage | Central database locked down 7393 | -8/Storage | Assisted by bots powering up and referring to "LRC-V3" 7416 | -8/Storage | Discovered exit to Factory (range 16) 7700 | -8/Storage | Learned location of Lower Caves (-6) 7727 | -8/Storage | Build established: Commander-Mutant 7767 | -8/Storage | Learned location of Zion (-6) 7769 | -8/Storage | Met 01-MTF 7789 | -8/Storage | Learned Factory stockpile data 7790 | -8/Storage | Learned location of 2 exits from Factory 7791 | -8/Storage | Loaded intel: 18 trap records 7792 | -8/Storage | Learned location of Recycling (-8) 7801 | -8/Storage | Learned location of 1 exit from Lower Caves 7843 | -8/Storage | Learned location of 1 exit from Extension 8445 | -8/Storage | Allies destroyed 01-MTF 8476 | -8/Storage | Lost 4 allies 8493 | -8/Storage | Entered Recycling 8493 | -8/Recycling | Accompanied by 2 allies 8494 | -8/Recycling | Identified exit to Factory 8495 | -8/Recycling | Identified exit to Scraptown 8737 | -8/Recycling | Build established: Scavenger-Mutant 9083 | -8/Recycling | Build established: Commander-Mutant 9383 | -8/Recycling | Learned Factory trap positions 9422 | -8/Recycling | Learned Storage trap positions 9473 | -8/Recycling | Learned 4 Factory zone layouts 9484 | -8/Recycling | Learned location of 3 exits from Factory 9493 | -8/Recycling | Learned 2 Lower Caves zone layouts 9624 | -8/Recycling | Scanned before Scraplab entrance 9645 | -8/Recycling | Entered Scraplab 9692 | -8/Recycling | Entered Scraptown 9692 | -8/Scraptown | Accompanied by 8 allies 9692 | -8/Scraptown | System corruption cleaned by C-Scrubber 9951 | -8/Scraptown | Discovered exit to Factory (range 11) 10119 | -8/Scraptown | Visited Shadow of the Wyrm 10138 | -8/Scraptown | Visited SPCMW 10158 | -8/Scraptown | Visited UFD Registry 10158 | -8/Scraptown | Registered with UFD as "Raildriver" 10196 | -8/Scraptown | Visited Symbiants 10220 | -8/Scraptown | Visited Assassins FH 10242 | -8/Scraptown | Visited Awakened 10259 | -8/Scraptown | Visited CPS Storage 10666 | -8/Scraptown | Visited Observation Area 10683 | -8/Scraptown | Visited Science Testing Area 10705 | -8/Scraptown | Visited Derelict Rescue Squad 10739 | -8/Scraptown | Visited Abandonware Association 10754 | -8/Scraptown | Learned abandonware demo "REVENGE.EXE" 10754 | -8/Scraptown | Learned abandonware demo "MELTYB.EXE" 10779 | -8/Scraptown | Visited Curators Association 10831 | -8/Scraptown | Visited Analyses Database 10871 | -8/Scraptown | Visited Junk Repository 10928 | -8/Scraptown | Visited DA-N13 Charitable Foundation 10934 | -8/Scraptown | Found DCF Scrap (28 items) 11440 | -8/Scraptown | Discovered exit to Factory (range 5) 11651 | -8/Scraptown | Met Optimus 11651 | -8/Scraptown | Accepted into 0bPrime 12051 | -8/Scraptown | Civil war broke out across Scraptown 12063 | -8/Scraptown | Found DM-GVY's Chainsaw 12075 | -8/Scraptown | Found PL-3XN's Ring of Power 12086 | -8/Scraptown | Found Potential Leg 12134 | -8/Scraptown | Lost 14 allies 12164 | -8/Scraptown | Entered Factory 12164 | -6/Factory | Evolved 4 slots: Propulsion x1, Utility x3 12165 | -6/Factory | Identified exit to Lower Caves 12166 | -6/Factory | Identified exit to Factory 12168 | -6/Factory | Loaded intel: 106 trap records 12193 | -6/Factory | Lost 3 allies 12315 | -6/Factory | Loaded intel: 8 recycling unit locations 12367 | -6/Factory | Repaired Centrium Light Armor Plating? 12613 | -6/Factory | Fabricated Mni. Fusion Reactor? 12720 | -6/Factory | Build established: Scout 12796 | -6/Factory | Learned Extension security intel 12817 | -6/Factory | Learned location of Protoforge (-3) 12848 | -6/Factory | Learned 2 Hub_04(d) zone layouts 12889 | -6/Factory | Learned location of 1 exit from Upper Caves 12944 | -6/Factory | Learned 2 Extension zone layouts 13012 | -6/Factory | Learned location of Proximity Caves (-4) 13152 | -6/Factory | Fabricated G-47 Trooper? 13245 | -6/Factory | Cargo convoy interrupted 13294 | -6/Factory | Spotted B-75 Beast 13371 | -6/Factory | Entered Lower Caves 13372 | -6/Lower Caves | Identified exit to Lower Caves 13615 | -6/Lower Caves | Entered another Lower Caves area 13655 | -6/Lower Caves | Encountered a Warlord checkpoint 13681 | -6/Lower Caves | Discovered exit to Factory (range 3) 13737 | -6/Lower Caves | Learned Factory terminal intel 13758 | -6/Lower Caves | Discovered new exit (range 12) 13761 | -6/Lower Caves | Identified exit to Zion 13876 | -6/Lower Caves | Entered Zion 13889 | -6/Zion | Discovered new exit (range 18) 13889 | -6/Zion | Given the Hacking Drone Bay 13936 | -6/Zion | Acquired unknown access codes intercepted by a Zionite 13956 | -6/Zion | Learned Factory terminal intel 13964 | -6/Zion | Found Prototype Processor 13964 | -6/Zion | Identified Exp. Targeting Computer 13966 | -6/Zion | Found Prototype Hackware 13966 | -6/Zion | Identified Exp. System Shield 13979 | -6/Zion | Learned location of Warlord (-5) 13988 | -6/Zion | Gained Derelict followers 14010 | -6/Zion | Found Prototype Launcher 14010 | -6/Zion | Identified Rocket Array 14019 | -6/Zion | Received a visual enhancement algorithm 14026 | -6/Zion | Identified exit to Deep Caves 14110 | -6/Zion | Opened final containment barrier to the Deep Caves 14114 | -6/Zion | Saw the warning signs outside the Deep Caves entrance 14136 | -6/Zion | Entered Deep Caves 14136 | -6/Deep Caves | Accompanied by 7 allies 14233 | -6/Deep Caves | Attacked by Z-Imprinter 14235 | -6/Deep Caves | Allies destroyed Z-Imprinter 14290 | -6/Deep Caves | Core integrity fell below 50% 14296 | -6/Deep Caves | Found Prototype Protection 14296 | -6/Deep Caves | Identified Zio. Weapon Casing 14319 | -6/Deep Caves | Z-Facility disabled 14488 | -6/Deep Caves | Found Zio. Weapon Casing 14572 | -6/Deep Caves | Lost 3 parts (3n) 14592 | -6/Deep Caves | Found Prototype Protection 14592 | -6/Deep Caves | Identified Zio. Heavy Carapace 14647 | -6/Deep Caves | Found Surveybot 24 Chip 14676 | -6/Deep Caves | Discovered new exit (range 7) 14705 | -6/Deep Caves | Build established: Scavenger-Scout 14722 | -6/Deep Caves | Spotted AG-76021 14729 | -6/Deep Caves | Spotted AG-09947 14822 | -6/Deep Caves | Lost 3 allies 14882 | -6/Deep Caves | Triggered Deep Caves wall 14882 | -6/Deep Caves | Spotted AS-40629 14882 | -6/Deep Caves | Spotted AS-09696 14883 | -6/Deep Caves | Found Prototype Storage 14901 | -6/Deep Caves | Identified Superbattery 14932 | -6/Deep Caves | Identified exit to Proximity Caves 14932 | -6/Deep Caves | Entered Proximity Caves 14934 | -5/Proximity Caves | Attracted the attention of an 0b10 checkpoint 14959 | -5/Proximity Caves | Learned location of 2 exits from Factory 15003 | -5/Proximity Caves | Core integrity fell below 20% 15031 | -5/Proximity Caves | Lost 4 parts (3n1u) 15174 | -5/Proximity Caves | Received a Behemoth hack from an annoying Tinkerer 15222 | -5/Proximity Caves | Learned location of 1 exit from Upper Caves 15285 | -5/Proximity Caves | Build established: Assassin 15288 | -5/Proximity Caves | Entered Factory 15288 | -5/Factory | Evolved 2 slots: Power x1, Utility x1 15289 | -5/Factory | Identified exit to Extension 15290 | -5/Factory | Identified exit to Upper Caves 15290 | -5/Factory | Identified exit to Factory 15291 | -5/Factory | Loaded intel: 27 terminal locations 15785 | -5/Factory | Lost 3 parts (1n2u) 16019 | -5/Factory | Lost 9 parts (1p2n5u1w) 16218 | -5/Factory | Core integrity fell below 50% 16233 | -5/Factory | Entered Extension 16234 | -5/Extension | Identified exit to Cetus 16263 | -5/Extension | Lost 6 parts (1p4n1u) 16299 | -5/Extension | Core integrity fell below 20% 16308 | -5/Extension | Build established: Mutant 16496 | -5/Extension | Destroyed by G-50 Soldier with Heavy Laser Last Messages --------------- 16308_ Acquired Imp. Treads. 16311_ Acquired Neutrino Core. 16313_ Acquired 58 matter. 16317_ Sneak attack on O-16 Technician. 16317_ Destroyed Hover Unit. 16321_ System corrupted: Imp. Treads fused. 16336_ Connecting with Terminal... 16339_ System corrupted: Matter fused (-6). 16361_ Connecting with Terminal... 16415_ R %6M#SGEMJFXZ, W<0L 16492_ Critical hit (Burn: +37). Map ----- +----------------------------------------------------+ | | | | | | | | | | | | | | | | | | | | | | | | | | | ?????????????????????????????????????????????????? | | ??#######???????????????#########????????????????? | | ??# #????????######## #???#######??????? | | ### ########## ##### #??????? | | ^ ##?????? | | ### ########## ?????? | | ??# #????????# ##?????? | | ??#### ##????????#^ ##### #??????? | | ?????# #?????????######## #???#### ##??????? | | ?????# #???????????????#####+#####????## T#??????? | | ?????# #???????????????# #????##"##??????? | | ?????# #???????????????# #????## ##??????? | | ????## ##??????????????# @ == #????#####??????? | | ##### #####??????##### =#????#####??????? | | g gbl #???????????????? | | ##### #######???###### #???????????????? | | #??#####??????????????# = #???????????????? | | #?????????????????????# #???????????????? | | #?????????????????????###########???????????????? | | #???????????????????????????????????????????????? | | ##???????????????????????????????????????????????? | | ?????????????????????????????????????????????????? | | ?????????????????????????????????????????????????? | | ?????????????????????????????????????????????????? | | ?????????????????????????????????????????????????? | | ?????????????????????????????????????????????????? | | ?????????????????????????????????????????????????? | | ?????????????????????????????????????????????????? | | ?????????????????????????????????????????????????? | | ?????????????????????????????????????????????????? | | ?????????????????????????????????????????????????? | | ?????????????????????????????????????????????????? | | ?????????????????????????????????????????????????? | | ?????????????????????????????????????????????????? | | ?????????????????????????????????????????????????? | | ?????????????????????????????????????????????????? | | ?????????????????????????????????????????????????? | +----------------------------------------------------+ Best States ------------- Heat Dissipation 63 Coolant Potential 65 Energy Generation 27 Energy Capacity 310 Matter Stores 300 Matter Capacity 300 Sight Range 22 Robot Scan Range 16 Terrain Scan Range 16 Terrain Scan Density 10 Cloak Strength 3 Armor Coverage 1200 Utility Shielding 66 Weapon Shielding 100 Evasion (%) 70 Targeting Accuracy 8 Melee Accuracy 16 Recoil Reduction 4 Offensive Hacking 30 Defensive Hacking 16 Trap Extractor Capacity 6 Item Schematics ----------------- CPS Tube | -6/Factory | Scanalyzed Robot Schematics ------------------ None Fabricated ------------ Mni. Fusion Reactor | x1 | -6/Factory | Preloaded G-47 Trooper | x3 | -6/Factory | Preloaded Repaired ---------- Centrium Light Armor Plating | 63% | -6/Factory Alien Tech Used ----------------- None Achievements -------------- None Challenges ------------ None Game ------ Seed MetaScrapPenetrator Manual? 0 Play Time 02:12:47 Cumulative 742.2 hours Start 2025.05.17 @ 13:04:36 End 2025.05.17 @ 15:38:47 Sessions 1 Manual Loads 0 Difficulty Rogue Special Mode None Game No. 244 Rogue 242 Adventurer 2 Explorer 0 Win Type - Total 42 Types 14/5/11/1/1/0/8/1/0/1 Lore% 95 Gallery% 93 Achievement% 82 Wizard Run 0 Options --------- Layout 0 ASCII 0 Keyboard 1 Movement Numpad Keybinds 0 Fullscreen 1 Font 24/Smallcaps Map View 76x50 Zoom Use 0% Tactical HUD 1 Map Filters NONE Filters NONE Steam 1 RUN: b06a70aa-60ba-4dfc-8688-155954ea9ff7